fUST/lending_fUST_20240328
["ID","MTS","AMOUNT","RATE_DAILY","PERIOD"]
[320816208,1711568853991,-500.0,0.00050406,120]
[320816209,1711568854019,-500.0,0.00050406,120]
[320816210,1711568854046,-2213.11,0.00050406,90]
[320816211,1711568854072,-275.51487002,0.00050407,4]
[320816212,1711568854097,-290.71845488,0.00050407,4]
[320816213,1711568854121,-155.44381746,0.00050407,4]
[320816214,1711568854147,-155.39017573,0.00050407,4]
[320816215,1711568854172,-200.52550786,0.00050407,4]
[320816216,1711568854197,-510.05045089,0.00050407,4]
[320816217,1711568854222,-646.72502155,0.00050407,4]
[320816218,1711568854247,-1135.91190827,0.00050407,4]
[320816219,1711568854273,-156.18476097,0.00050407,4]
[320816220,1711568854300,-806.58288788,0.00050407,4]
[320816221,1711568854326,-155.11944197,0.00050407,4]
[320816222,1711568854448,-211.05575789,0.00050407,4]
[320816223,1711568854474,-1801.37350393,0.00050407,4]
[320816224,1711568854500,-228.70085689,0.00050407,4]
[320816225,1711568854527,-400.0,0.00050407,2]
[320816226,1711568854553,-438.39753792,0.00050407,4]
[320816227,1711568854579,-1079.28481832,0.00050407,4]
[320816228,1711568854604,-863.54495364,0.00050407,4]
[320816229,1711568854629,-606.64205457,0.00050407,4]
[320816230,1711568854653,-288.30618518,0.00050407,4]
[320816231,1711568854678,-240.25025926,0.00050407,4]
[320816232,1711568854702,-167.23054489,0.00050407,4]
[320816233,1711568854727,-3274.401257,0.00050408,4]
[320816234,1711568854752,-266.01979316,0.00050408,120]
[320816235,1711568854776,-410.9878621,0.00050408,120]
[320816236,1711568854801,-500.0,0.00050408,120]
[320816237,1711568854831,-211.21814564,0.00050408,120]
[320816238,1711568854857,-500.0,0.00050408,120]
[320816239,1711568854883,-164.40124908,0.00050408,120]
[320816240,1711568854912,-500.0,0.00050408,120]
[320816241,1711568854938,-500.0,0.00050408,120]
[320816242,1711568854964,-462.02901276,0.00050408,120]
[320816243,1711568854990,-500.0,0.00050408,120]
[320816244,1711568855016,-500.0,0.00050408,120]
[320816245,1711568855042,-408.52337801,0.00050408,120]
[320816246,1711568855069,-500.0,0.00050408,120]
[320816247,1711568855095,-500.0,0.00050408,120]
[320816248,1711568855122,-383.60291451,0.00050408,120]
[320816249,1711568855148,-373.12216222,0.00050408,120]
[320816250,1711568855175,-159.50900649,0.00050408,120]
[320816251,1711568855201,-500.0,0.00050408,21]
[320816252,1711568855228,-500.0,0.00050408,120]
[320816253,1711568855255,-500.0,0.00050408,120]
[320816254,1711568855282,-500.0,0.00050408,120]
[320816255,1711568855309,-58316.12791133,0.00050409,4]
[320816256,1711568855344,-414.22845985,0.00050409,120]
[320816257,1711568855375,-500.0,0.00050409,120]
[320816258,1711568855405,-1835.03,0.00050409,120]
[320816259,1711568855432,-1000.0,0.00050409,7]
[320816260,1711568855458,-929.83704583,0.00050649,2]
[320816261,1711568855487,-109551.19745896,0.00050827,2]
[320816262,1711568855515,-929.83704583,0.00051954,2]
[320816263,1711568855543,-599.0,0.00052054,120]
[320816264,1711568855571,-500.0,0.00053146,120]
[320816265,1711568855601,-500.0,0.00053146,120]
[320816266,1711568855634,-506.12,0.00053146,120]
[320816267,1711568855669,-1000.0,0.00053146,2]
[320816268,1711568855700,-500.0,0.00053146,120]
[320816269,1711568855729,-500.0,0.00053146,120]
[320816270,1711568855762,-500.0,0.00053146,120]
[320816271,1711568855792,-500.0,0.00053146,120]
[320816272,1711568855824,-2213.11,0.00053146,90]
[320816273,1711568855859,-500.0,0.00053148,120]
[320816274,1711568855890,-500.0,0.00053148,21]
[320816275,1711568855921,-500.0,0.00053148,120]
[320816276,1711568855951,-500.0,0.00053148,120]
[320816277,1711568855981,-500.0,0.00053148,120]
[320816278,1711568856011,-500.0,0.00053149,120]
[320816279,1711568856041,-1835.03,0.00053149,120]
[320816280,1711568856072,-1000.0,0.00053149,7]
[320816281,1711568856101,-500.0,0.00054794,120]
[320816282,1711568856130,-500.0,0.00054794,120]
[320816283,1711568856163,-500.0,0.00054794,120]
[320816284,1711568856192,-424.82051918,0.00054794,120]
[320816285,1711568856219,-500.0,0.00054794,120]
[320816286,1711568856249,-500.0,0.00054794,120]
[320816287,1711568856283,-500.0,0.00055886,120]
[320816288,1711568856314,-506.12,0.00055886,120]
[320816289,1711568856346,-1000.0,0.00055886,2]
[320816290,1711568856377,-500.0,0.00055886,120]
[320816291,1711568856407,-500.0,0.00055886,120]
[320816292,1711568856439,-500.0,0.00055886,120]
[320816293,1711568856470,-500.0,0.00055886,120]
[320816294,1711568856501,-2213.11,0.00055886,90]
[320816295,1711568856536,-73199.53802418,0.00055888,61]
[320816296,1711568856569,-500.0,0.00055888,120]
[320816297,1711568856601,-500.0,0.00055888,120]
[320816298,1711568856631,-500.0,0.00055888,21]
[320816299,1711568856659,-500.0,0.00055888,120]
[320816300,1711568856686,-500.0,0.00055888,120]
[320816301,1711568856715,-500.0,0.00055888,120]
[320816302,1711568856745,-500.0,0.00055888,120]
[320816303,1711568856775,-1835.03,0.00055888,120]
[320816304,1711568856806,-1000.0,0.00055888,7]
[320816305,1711568856836,-2554.6561,0.00055903,120]
[320816344,1711569032262,-3763.664025,0.00042124,120]
[320816346,1711569032272,-3763.664025,0.00049145,120]
[320816348,1711569032281,-500.0,0.00050406,21]
[320816350,1711569032291,-500.0,0.00050406,120]
[320816352,1711569032300,-500.0,0.00050406,120]
[320816354,1711569032309,-500.0,0.00050406,120]
[320816356,1711569032318,-500.0,0.00050406,120]
[320816359,1711569032327,-500.0,0.00050406,120]
[320816362,1711569032337,-477.63994533,0.00050406,120]
[320816364,1711569032345,-500.0,0.00050406,120]
[320816365,1711569032355,-1000.0,0.00050406,2]
[320816368,1711569032365,-500.0,0.00050406,120]
[320816369,1711569032375,-500.0,0.00050406,120]
[320816371,1711569032384,-500.0,0.00050406,120]
[320816373,1711569032393,-500.0,0.00050406,120]
[320816375,1711569032402,-599.0,0.00052054,120]
[320816376,1711569032412,-462.73220732,0.00053143,4]
[320816378,1711569032421,-678.49467637,0.00053144,2]
[320816379,1711569032430,-2094.43089907,0.00053145,2]
[320816381,1711569032440,-500.0,0.00053146,21]
[320816382,1711569032449,-500.0,0.00053146,120]
[320816383,1711569032466,-500.0,0.00053146,120]
[320816384,1711569032478,-500.0,0.00053146,120]
[320816385,1711569032488,-500.0,0.00053146,120]
[320816386,1711569032497,-500.0,0.00053146,120]
[320816387,1711569032506,-500.0,0.00053146,120]
[320816388,1711569032515,-1000.0,0.00053146,2]
[320816389,1711569032525,-500.0,0.00053146,120]
[320816390,1711569032534,-500.0,0.00053146,120]
[320816391,1711569032543,-500.0,0.00053146,120]
[320816392,1711569032553,-500.0,0.00053146,120]
[320816393,1711569032562,-500.0,0.00054794,120]
[320816394,1711569032571,-500.0,0.00054794,120]
[320816395,1711569032581,-1730.73494631,0.00055746,4]
[320816396,1711569032590,-761.20520237,0.00055747,15]
[320816397,1711569032599,-166.666666,0.00055748,2]
[320816398,1711569032742,-500.0,0.00055886,21]
[320816399,1711569032752,-500.0,0.00055886,120]
[320816400,1711569032763,-500.0,0.00055886,120]
[320816401,1711569032773,-392.16663062,0.00055886,120]
[320816402,1711569032782,-500.0,0.00055886,120]
[320816403,1711569032792,-398.94611722,0.00055886,120]
[320816404,1711569032809,-101.05388278,0.00055886,120]
[320816405,1711569032819,-500.0,0.00055886,120]
[320816406,1711569032829,-1000.0,0.00055886,2]
[320816407,1711569032838,-500.0,0.00055886,120]
[320816408,1711569032850,-500.0,0.00055886,120]
[320816409,1711569032860,-500.0,0.00055886,120]
[320816410,1711569032869,-3763.664025,0.00056166,120]
[320816411,1711569032879,-500.0,0.00058625,120]
[320816412,1711569032895,-500.0,0.00058625,120]
[320816413,1711569032905,-2213.11,0.00058625,90]
[320816414,1711569032915,-500.0,0.00058625,21]
[320816415,1711569032926,-500.0,0.00058625,120]
[320816416,1711569032938,-500.0,0.00058625,120]
[320816417,1711569032949,-500.0,0.00058625,120]
[320816418,1711569032961,-1000.0,0.00058625,2]
[320816419,1711569032973,-500.0,0.00058625,120]
[320816420,1711569032984,-500.0,0.00058625,120]
[320816421,1711569032994,-170.30708498,0.00058626,4]
[320816422,1711569033004,-500.0,0.00058627,120]
[320816423,1711569033014,-1835.03,0.00058628,120]
[320816424,1711569033024,-1000.0,0.00058628,7]
[320816425,1711569033035,-500.0,0.0006,120]
[320816426,1711569033045,-637.63491302,0.00061365,120]
[320816427,1711569033055,-2213.11,0.00061365,90]
[320816428,1711569033066,-500.0,0.00061365,21]
[320816429,1711569033075,-500.0,0.00061365,120]
[320816430,1711569033085,-500.0,0.00061365,120]
[320816431,1711569033095,-622.77409501,0.00061365,120]
[320816432,1711569033105,-500.0,0.00061365,120]
[320816433,1711569033116,-500.0,0.00061367,120]
[320816434,1711569033127,-1835.03,0.00061368,120]
[320816435,1711569033136,-1000.0,0.00061368,7]
[320816436,1711569033145,-155.35886258,0.00062998,7]
[320816437,1711569033154,-18443.61,0.00063,120]
[320816438,1711569033163,-3273.07944826,0.00063187,120]
[320816494,1711569038305,-7891.30491985,0.00055745,4]
[320816495,1711569038315,-490.58457674,0.00063187,120]
[320816496,1711569038324,-166.666666,0.00063348,2]
[320816497,1711569038333,-2213.11,0.00064105,90]
[320816498,1711569038343,-500.0,0.00064105,21]
[320816499,1711569038352,-500.0,0.00064105,120]
[320816500,1711569038362,-500.0,0.00064105,120]
[320816501,1711569038372,-500.0,0.00064105,120]
[320816503,1711569038381,-1835.03,0.00064107,120]
[320816505,1711569038390,-1000.0,0.00064107,7]
[320816506,1711569038399,-176.48301418,0.0006441,12]
[320816507,1711569038408,-500.0,0.00065753,120]
[320816508,1711569038417,-10000.0,0.00066624,120]
[320816509,1711569038426,-2213.11,0.00066844,90]
[320816510,1711569038435,-500.0,0.00066844,21]
[320816511,1711569038448,-500.0,0.00066844,120]
[320816512,1711569038457,-500.0,0.00066844,120]
[320816513,1711569038466,-500.0,0.00066844,120]
[320816514,1711569038476,-176.13765519,0.00066846,120]
[320816515,1711569038485,-500.0,0.00066846,120]
[320816516,1711569038494,-211.21814564,0.00066846,120]
[320816517,1711569038504,-500.0,0.00066846,120]
[320816518,1711569038512,-200.5453525,0.00066846,120]
[320816519,1711569038521,-1835.03,0.00066847,120]
[320816520,1711569038530,-1000.0,0.00066847,7]
[320816521,1711569038539,-599.0,0.00068493,120]
[320816522,1711569038549,-2213.11,0.00069584,90]
[320816523,1711569038558,-500.0,0.00069584,21]
[320816524,1711569038568,-500.0,0.00069584,120]
[320816525,1711569038577,-500.0,0.00069584,120]
[320816526,1711569038587,-500.0,0.00069584,120]
[320816527,1711569038596,-5991.28778619,0.00069586,120]
[320816528,1711569038606,-1835.03,0.00069587,120]
[320816529,1711569038615,-1000.0,0.00069587,7]
[320816530,1711569038625,-1000.0,0.0007,120]
[320816531,1711569038634,-500.0,0.00072046,120]
[320816532,1711569038643,-2213.11,0.00072324,90]
[320816533,1711569038652,-500.0,0.00072324,21]
[320816534,1711569038662,-500.0,0.00072324,120]
[320816535,1711569038671,-500.0,0.00072324,120]
[320816536,1711569038681,-544.87432969,0.00072324,120]
[320816537,1711569038691,-1835.03,0.00072327,120]
[320816538,1711569038701,-358.20830937,0.00072327,7]
[320816539,1711569038711,-300.0,0.00073,5]
[320816540,1711569038720,-10000.0,0.00073558,120]
[320816541,1711569038729,-155.43255527,0.00074297,60]
[320816542,1711569038738,-160.43762445,0.00074316,120]
[320816543,1711569038747,-235.7523,0.00074692,2]
[320816544,1711569038756,-185.03510882,0.00074998,7]
[320816545,1711569038765,-288.62306443,0.00074998,120]
[320816546,1711569038774,-225.15748713,0.00074998,2]
[320816547,1711569038783,-269.26423977,0.00074999,7]
[320816548,1711569038792,-2213.11,0.00075064,90]
[320816549,1711569038802,-500.0,0.00075064,21]
[320816550,1711569038811,-500.0,0.00075064,120]
[320816551,1711569038820,-500.0,0.00075064,120]
[320816552,1711569038829,-1835.03,0.00075066,120]
[320816553,1711569038838,-2213.11,0.00077803,90]
[320816554,1711569038848,-500.0,0.00077803,21]
[320816555,1711569038857,-500.0,0.00077803,120]
[320816556,1711569038866,-500.0,0.00077803,120]
[320816557,1711569038875,-1835.03,0.00077806,120]
[320816558,1711569038887,-500.00000085,0.0008,105]
[320816559,1711569038898,-1000.0,0.0008,120]
[320816560,1711569038907,-2213.11,0.00080543,90]
[320816561,1711569038916,-500.0,0.00080543,21]
[320816562,1711569038925,-500.0,0.00080543,120]
[320816563,1711569038934,-500.0,0.00080543,120]
[320816564,1711569038946,-1835.03,0.00080546,120]
[320816565,1711569038955,-10000.0,0.00081214,120]
[320816566,1711569038964,-2213.11,0.00083283,90]
[320816567,1711569038975,-500.0,0.00083283,21]
[320816568,1711569038984,-500.0,0.00083283,120]
[320816569,1711569038993,-500.0,0.00083283,120]
[320816570,1711569039002,-1835.03,0.00083286,120]
[320816571,1711569039012,-820.70273653,0.00083598,7]
[320816572,1711569039021,-599.0,0.00084931,120]
[320816573,1711569039031,-500.0,0.00085,120]
[320816574,1711569039040,-500.0,0.00086,120]
[320816575,1711569039049,-2213.11,0.00086023,90]
[320816576,1711569039059,-500.0,0.00086023,21]
[320816577,1711569039071,-294.4627338,0.00086023,120]
[320816578,1711569039082,-500.0,0.00086023,120]
[320816579,1711569039092,-1835.03,0.00086025,120]
[320816580,1711569039101,-163.33,0.000868,120]
[320816581,1711569039111,-500.0,0.00087,120]
[320816582,1711569039122,-36.06155145,0.00087408,120]
[320816583,1711569039131,-258.51149146,0.00087998,7]
[320816584,1711569039141,-8876.91423294,0.00088,120]
[320816585,1711569039150,-500.0,0.00088,120]
[320816586,1711569039160,-1000.0,0.0008864,120]
[320816587,1711569039169,-2213.11,0.00088762,90]
[320816588,1711569039178,-500.0,0.00088762,21]
[320816589,1711569039187,-500.0,0.00088762,120]
[320816590,1711569039197,-1835.03,0.00088765,120]
[320816591,1711569039206,-1000.0,0.00088999,120]
[320816592,1711569039215,-500.0,0.00089,120]
[320816593,1711569039225,-155.27032593,0.00089665,7]
[320816594,1711569039234,-155.2951851,0.00089665,7]
[320816595,1711569039242,-230.71873041,0.00089666,7]
[320816596,1711569039251,-5543.47254561,0.00089666,7]
[320816597,1711569039260,-494.18319199,0.00089666,7]
[320816598,1711569039269,-10000.0,0.00089667,120]
[320816599,1711569039278,-500.0,0.0009,120]
[320816600,1711569039288,-500.0,0.0009,120]
[320816601,1711569039297,-2213.11,0.00091502,90]
[320816602,1711569039306,-500.0,0.00091502,21]
[320816603,1711569039318,-500.0,0.00091502,120]
[320816604,1711569039329,-1835.03,0.00091505,120]
[320816605,1711569039339,-500.0,0.000925,120]
[320816606,1711569039348,-2213.11,0.00094242,90]
[320816607,1711569039357,-500.0,0.00094242,21]
[320816608,1711569039366,-500.0,0.00094242,120]
[320816609,1711569039375,-1835.03,0.00094244,120]
[320816610,1711569039386,-6032.41409355,0.0009488,60]
[320816611,1711569039395,-500.0,0.00095,120]
[320816612,1711569039405,-2213.11,0.00096981,90]
[320816613,1711569039414,-500.0,0.00096981,21]
[320816614,1711569039423,-500.0,0.00096981,120]
[320816615,1711569039432,-1835.03,0.00096984,120]
[320816616,1711569039443,-500.0,0.000975,120]
[320816617,1711569039452,-50000.0,0.00098,120]
[320816618,1711569039461,-1000.0,0.00098765,120]
[320816619,1711569039471,-45432.82752905,0.00099,61]
[320816620,1711569039486,-3443.79999999,0.00099,61]
[320816621,1711569039497,-4367.99512161,0.00099,61]
[320816624,1711569040436,-500.0,0.00050406,120]
[320816625,1711569040447,-186.32,0.00053146,120]
[320816634,1711569043523,-313.68,0.00053146,120]
[320816635,1711569043532,-500.0,0.00055886,120]
[320816636,1711569043543,-500.0,0.00058625,120]
[320816637,1711569043553,-500.0,0.00061365,120]
[320816638,1711569043563,-258.49082077,0.00064105,120]
[320816642,1711569043709,-241.50917923,0.00064105,120]
[320816643,1711569043718,-522.18028834,0.00066844,120]
[320816644,1711569043727,-1655.03086749,0.00099,61]
[320816645,1711569043736,-7622.22257869,0.00099,120]
[320816646,1711569043748,-2377.77742131,0.00099,120]
[320816647,1711569043757,-2213.11,0.00099721,90]
[320816648,1711569043766,-500.0,0.00099721,21]
[320816649,1711569043775,-301.77229202,0.00099721,120]
[320816650,1711569044422,-198.22770798,0.00099721,120]
[320816651,1711569044432,-1835.19411666,0.00099724,120]
[320816652,1711569044441,-1000.0,0.00099999,120]
[320816653,1711569044453,-500.0,0.001,120]
[320816654,1711569044462,-1114.32217406,0.001,120]
[320816655,1711569044471,-26337.12549216,0.001,120]
[320816656,1711569044480,-2479.29265624,0.001,120]
[320816657,1711569044496,-470.47734376,0.001,120]
[320816658,1711569044505,-500.0,0.001,120]
[320816659,1711569044515,-599.0,0.00101369,120]
[320816660,1711569044524,-2213.11,0.00102461,90]
[320816661,1711569044616,-469.4794742,0.00102461,21]
[320816662,1711569044628,-500.0,0.00102461,120]
[320816663,1711569044637,-2213.11,0.00105201,90]
[320816664,1711569044647,-628.6945306,0.00105201,120]
[320816665,1711569044658,-2213.11,0.0010794,90]
[320816666,1711569044667,-29.81216808,0.00109304,120]
[320816667,1711569044679,-9779.16420458,0.00109304,120]
[320816690,1711569046420,-191.59547061,0.00064104,7]
[320816691,1711569046430,-191.02362734,0.00109304,120]
[320816692,1711569046440,-500.0,0.0011,120]
[320816693,1711569046452,-449.85803794,0.0011068,90]
[320816694,1711569046477,-1763.25196206,0.0011068,90]
[320816695,1711569046487,-8.08592607,0.00111,111]
[320816696,1711569046499,-2102.91407393,0.00111,111]
[320816697,1711569046509,-2213.12673089,0.0011342,90]
[320816698,1711569046518,-344.18142738,0.00117808,120]
[320816699,1711569046527,-500.0,0.0012,120]
[320816700,1711569046537,-10000.0,0.0012068,120]
[320816702,1711569046546,-805.56338879,0.00123215,120]
[320816704,1711569046555,-1000.0,0.00123457,120]
[320816706,1711569046564,-500.0,0.0013,120]
[320816708,1711569046573,-10000.0,0.00133241,120]
[320816710,1711569046582,-500.0,0.0014,120]
[320816712,1711569046591,-10000.0,0.00147109,120]
[320816714,1711569046601,-12142.9582766,0.00149755,120]
[320816751,1711569234357,3441.26626461,0.0002,2]
[320816752,1711569234384,6071.14222334,0.0002,2]
[320816759,1711569259284,3742.33025183,0.000125,2]
[320816764,1711569274592,688.71264987,0.0002,2]
[320816765,1711569274748,155.00620025,0.0002,2]
[320816775,1711569293087,155.25441867,0.0002,2]
[320816776,1711569294573,688.71264987,0.0002,2]
[320816777,1711569314570,688.71264987,0.0002,2]
[320816778,1711569315560,155.00620025,0.0002,2]
[320816779,1711569330653,688.71264987,0.0002,2]
[320816780,1711569349560,307.80064799,0.0002,2]
[320816781,1711569350570,688.71264987,0.0002,2]
[320816782,1711569368577,688.71264987,0.0002,2]
[320816783,1711569372911,313.32500615,0.0002,2]
[320816784,1711569385394,19072.52430496,0.0002,2]
[320816785,1711569386574,688.71264987,0.0002,2]
[320816786,1711569388931,313.32500615,0.0002,2]
[320816787,1711569402585,688.71264987,0.0002,2]
[320816788,1711569404932,313.32500615,0.0002,2]
[320816789,1711569405389,4218.27663769,0.0002,2]
[320816790,1711569405414,8485.24396438,0.0002,2]
[320816791,1711569422591,304.91339031,0.0002,2]
[320816792,1711569426912,331.58057712,0.0002,2]
[320816793,1711569548006,2000.0,0.00025851,2]
[320816794,1711569566822,159.05,0.00027873,30]
[320816798,1711570165086,313.2664882,0.00027873,2]
[320816799,1711570208860,155.08851623,0.00027873,2]
[320816800,1711570211028,313.32500615,0.00027873,2]
[320816801,1711570216728,10958.67462962,0.00027873,2]
[320816802,1711570225665,644.41073712,0.00025773,2]
[320816803,1711570231008,313.32500615,0.00027873,2]
[320816837,1711570233368,-725.64438148,0.00030772,4]
[320816845,1711570233427,-2061.24880532,0.00030772,4]
[320816847,1711570233438,-644.41073712,0.00030773,2]
[320816850,1711570233447,-1730.73494631,0.00041975,4]
[320816852,1711570233456,-462.73220732,0.00041976,4]
[320816855,1711570233465,-7891.30491985,0.00041976,4]
[320816858,1711570233475,-761.20520237,0.00041977,2]
[320816861,1711570233484,-155.00620025,0.00041977,4]
[320816864,1711570233494,-678.49467637,0.00041977,2]
[320816866,1711570233504,-300.0,0.00041982,3]
[320816868,1711570233513,-456.47318623,0.00042024,2]
[320816870,1711570233522,-1625.44585659,0.000424,120]
[320816872,1711570233531,-166.6666668,0.00043309,2]
[320816874,1711570233539,-164.385008,0.00043784,2]
[320816876,1711570233548,-163.528193,0.00043797,120]
[320816878,1711570233558,-300.071688,0.00044951,2]
[320816880,1711570233567,-155.43255527,0.00054,30]
[320816882,1711570233577,-165.976935,0.00054053,2]
[320816884,1711570233586,-163.528193,0.00054746,120]
[320816886,1711570233595,-544.13275471,0.00055344,2]
[320816888,1711570233604,-1755.64240151,0.00057,120]
[320816890,1711570233616,-1005.55489146,0.000587,60]
[320816892,1711570233625,-583.56249909,0.0006,120]
[320816894,1711570233634,-2003.1538643,0.0006,30]
[320816896,1711570233644,-669.68524873,0.0006,12]
[320816898,1711570233654,-176.48301418,0.00065694,12]
[320816900,1711570233663,-163.528193,0.00065695,120]
[320816902,1711570233672,-500.0,0.00065753,120]
[320816904,1711570233681,-8145.96640145,0.00066521,2]
[320816905,1711570233693,-16754.03359855,0.00066521,2]
[320816906,1711570233704,-1000.0,0.00066623,7]
[320816907,1711570233714,-300.071688,0.00067426,30]
[320816909,1711570233724,-152.71670354,0.00068565,2]
[320816911,1711570233733,-296.76106994,0.00068665,7]
[320816913,1711570233742,-1000.0,0.00069363,7]
[320816915,1711570233751,-1000.0,0.00072102,7]
[320816917,1711570233760,-160.36027412,0.00074316,120]
[320816918,1711570233769,-235.7523,0.00074692,2]
[320816919,1711570233778,-358.20830937,0.00074842,7]
[320816920,1711570233787,-993.97,0.00077805,120]
[320816921,1711570233796,-500.00000085,0.0008,105]
[320816922,1711570233805,-1198.76,0.00080542,90]
[320816923,1711570233815,-500.0,0.00080542,21]
[320816924,1711570233824,-500.0,0.00080542,120]
[320816925,1711570233833,-500.0,0.00080542,120]
[320816926,1711570233843,-993.97,0.00080545,120]
[320816927,1711570233852,-1198.76,0.00083282,90]
[320816928,1711570233861,-500.0,0.00083282,21]
[320816929,1711570233870,-500.0,0.00083282,120]
[320816930,1711570233880,-500.0,0.00083282,120]
[320816931,1711570233889,-993.97,0.00083285,120]
[320816932,1711570233898,-1198.76,0.00086022,90]
[320816933,1711570233909,-500.0,0.00086022,21]
[320816934,1711570233919,-500.0,0.00086022,120]
[320816935,1711570233928,-500.0,0.00086022,120]
[320816936,1711570233937,-993.97,0.00086024,120]
[320816937,1711570233946,-163.33,0.000868,120]
[320816938,1711570233955,-500.0,0.00087999,120]
[320816939,1711570233965,-8876.91423294,0.00088,120]
[320816940,1711570233974,-1198.76,0.00088761,90]
[320816941,1711570233983,-500.0,0.00088761,21]
[320816942,1711570233993,-500.0,0.00088761,120]
[320816943,1711570234003,-544.87432969,0.00088761,120]
[320816944,1711570234012,-993.97,0.00088764,120]
[320816945,1711570234021,-152.71670352,0.00088899,2]
[320816946,1711570234031,-500.0,0.00090739,120]
[320816947,1711570234040,-500.0,0.00091415,120]
[320816948,1711570234049,-403.36719947,0.00091501,90]
[320816949,1711570234061,-795.39280053,0.00091501,90]
[320816950,1711570234071,-500.0,0.00091501,21]
[320816951,1711570234080,-500.0,0.00091501,120]
[320816952,1711570234089,-993.97,0.00091504,120]
[320816953,1711570234098,-500.0,0.00093478,120]
[320816954,1711570234107,-362.21799947,0.00094241,90]
[320816955,1711570234135,1046.5062022,0.0003,2]
[320817010,1711570238488,-836.54200053,0.00094241,90]
[320817011,1711570238497,-500.0,0.00094241,21]
[320817012,1711570238507,-500.0,0.00094241,120]
[320817013,1711570238516,-993.97,0.00094244,120]
[320817014,1711570238526,-6033.37000566,0.0009488,60]
[320817015,1711570238535,-500.0,0.00096218,120]
[320817016,1711570238544,-1198.76,0.00096981,90]
[320817017,1711570238553,-500.0,0.00096981,21]
[320817018,1711570238563,-500.0,0.00096981,120]
[320817019,1711570238572,-993.97,0.00096983,120]
[320817020,1711570238581,-500.0,0.00098958,120]
[320817021,1711570238591,-1198.76,0.0009972,90]
[320817022,1711570238600,-500.0,0.0009972,21]
[320817023,1711570238609,-500.0,0.0009972,120]
[320817024,1711570238618,-993.97,0.00099723,120]
[320817025,1711570238628,-500.0,0.001,120]
[320817026,1711570238637,-390.31,0.001,14]
[320817027,1711570238646,-500.0,0.00101698,120]
[320817028,1711570238656,-1198.76,0.0010246,90]
[320817029,1711570238665,-500.0,0.0010246,21]
[320817030,1711570238674,-294.4627338,0.0010246,120]
[320817031,1711570238683,-993.97,0.00102463,120]
[320817032,1711570238692,-500.0,0.00104437,120]
[320817033,1711570238702,-1198.76,0.001052,90]
[320817034,1711570238712,-500.0,0.001052,21]
[320817035,1711570238723,-993.97,0.00105203,120]
[320817036,1711570238733,-500.0,0.00107177,120]
[320817037,1711570238743,-1198.76,0.00107939,90]
[320817038,1711570238753,-500.0,0.00107939,21]
[320817039,1711570238764,-993.97,0.00107942,120]
[320817040,1711570238773,-152.71670352,0.00109233,120]
[320817041,1711570238783,-500.0,0.00109917,120]
[320817042,1711570238792,-500.0,0.0011,120]
[320817043,1711570238801,-1198.76,0.00110679,90]
[320817044,1711570238810,-500.0,0.00110679,21]
[320817045,1711570238819,-993.97,0.00110682,120]
[320817046,1711570238829,-500.0,0.00112656,120]
[320817047,1711570238838,-1198.76,0.00113419,90]
[320817048,1711570238847,-500.0,0.00113419,21]
[320817049,1711570238856,-993.97,0.00113422,120]
[320817050,1711570238865,-500.0,0.00113499,120]
[320817051,1711570238874,-500.0,0.00113499,120]